[Event "Titled Tuesday Blitz June 6 Late 2023"]
[White "Barria Santos, Jose Guilherme"]
[Black "Aldokhin, Ivan"]
[WhiteFideId "1939300"]
[BlackFideId "24115720"]
[WhiteElo "2266"]
[BlackElo "2322"]
[Result "0-1"]
[Round "11"]
[TimeControl "180+2"]
[Date "2023.06.07"]
[WhiteClock "0:00:04"]
[BlackClock "0:00:02"]
[Board "46"]

1. Nf3 {[%clk 0:02:55]}  Nf6 {[%clk 0:02:59]} 2. g3 {[%clk 0:02:55]}  g6 {[%clk 0:03:00]} 3. Bg2 {[%clk 0:02:54]}  Bg7 {[%clk 0:03:01]} 4. O-O {[%clk 0:02:55]}  O-O {[%clk 0:03:01]} 5. d4 {[%clk 0:02:55]}  d6 {[%clk 0:03:02]} 6. c4 {[%clk 0:02:56]}  Nc6 {[%clk 0:02:58]} 7. Nc3 {[%clk 0:02:53]}  Bf5 {[%clk 0:02:36]} 8. d5 {[%clk 0:02:44]}  Na5 {[%clk 0:02:35]} 9. b3 {[%clk 0:02:45]}  Ne4 {[%clk 0:02:31]} 10. Nxe4 {[%clk 0:02:44]}  Bxe4 {[%clk 0:02:31]} 11. Bd2 {[%clk 0:02:40]}  c5 {[%clk 0:02:28]} 12. Rc1 {[%clk 0:02:30]}  b5 {[%clk 0:02:27]} 13. Qe1 {[%clk 0:02:27]}  b4 {[%clk 0:02:21]} 14. Ng5 {[%clk 0:02:17]}  Bxg2 {[%clk 0:02:21]} 15. Kxg2 {[%clk 0:02:18]}  Nb7 {[%clk 0:02:19]} 16. e4 {[%clk 0:02:16]}  h6 {[%clk 0:02:16]} 17. Nf3 {[%clk 0:02:15]}  a5 {[%clk 0:02:14]} 18. e5 {[%clk 0:02:15]}  a4 {[%clk 0:02:15]} 19. Qe3 {[%clk 0:02:06]}  axb3 {[%clk 0:02:14]} 20. axb3 {[%clk 0:02:07]}  Ra3 {[%clk 0:02:12]} 21. Rfe1 {[%clk 0:01:49]}  Na5 {[%clk 0:02:09]} 22. Rb1 {[%clk 0:01:49]}  Nxc4 {[%clk 0:02:09]} 23. Qe2 {[%clk 0:01:49]}  Nxe5 {[%clk 0:02:02]} 24. Nxe5 {[%clk 0:01:48]}  dxe5 {[%clk 0:02:02]} 25. Qc4 {[%clk 0:01:48]}  Qa8 {[%clk 0:01:37]} 26. Bc1 {[%clk 0:01:44]}  Ra2 {[%clk 0:01:34]} 27. Kg1 {[%clk 0:01:37]}  Rd8 {[%clk 0:01:33]} 28. Rd1 {[%clk 0:00:54]}  e6 {[%clk 0:01:31]} 29. d6 {[%clk 0:00:54]}  Bf8 {[%clk 0:01:10]} 30. Qxc5 {[%clk 0:00:51]}  Ra6 {[%clk 0:00:40]} 31. Qxb4 {[%clk 0:00:46]}  Raxd6 {[%clk 0:00:40]} 32. Rxd6 {[%clk 0:00:45]}  Rxd6 {[%clk 0:00:41]} 33. Qe1 {[%clk 0:00:44]}  Qf3 {[%clk 0:00:41]} 34. Be3 {[%clk 0:00:43]}  h5 {[%clk 0:00:41]} 35. b4 {[%clk 0:00:38]}  h4 {[%clk 0:00:41]} 36. b5 {[%clk 0:00:39]}  Rd7 {[%clk 0:00:29]} 37. Qf1 {[%clk 0:00:37]}  f5 {[%clk 0:00:27]} 38. Qg2 {[%clk 0:00:33]}  Rd1+ {[%clk 0:00:23]} 39. Rxd1 {[%clk 0:00:31]}  Qxd1+ {[%clk 0:00:23]} 40. Qf1 {[%clk 0:00:32]}  Qb3 {[%clk 0:00:17]} 41. b6 {[%clk 0:00:24]}  Bd6 {[%clk 0:00:09]} 42. Qc1 {[%clk 0:00:15]}  h3 {[%clk 0:00:07]} 43. Qf1 {[%clk 0:00:07]}  f4 {[%clk 0:00:06]} 44. Bc1 {[%clk 0:00:05]}  Qxb6 {[%clk 0:00:04]} 45. Qxh3 {[%clk 0:00:04]}  Qb3 {[%clk 0:00:04]} 46. Qg4 {[%clk 0:00:02]}  Kf7 {[%clk 0:00:03]} 47. Qe2 {[%clk 0:00:01]}  Qd5 {[%clk 0:00:03]} 48. Qf1 {[%clk 0:00:01]}  f3 {[%clk 0:00:03]} 49. Be3 {[%clk 0:00:01]}  Bc5 {[%clk 0:00:02]} 50. Qc1 {[%clk 0:00:02]}  Bxe3 {[%clk 0:00:02]} 51. fxe3 {[%clk 0:00:03]}  e4 {[%clk 0:00:02]} 52. Qc2 {[%clk 0:00:02]}  Qd3 {[%clk 0:00:02]} 53. Qf2 {[%clk 0:00:02]}  Qd1+ {[%clk 0:00:01]} 54. Qf1 {[%clk 0:00:03]}  Qxf1+ {[%clk 0:00:01]} 55. Kxf1 {[%clk 0:00:04]}  Kf6 {[%clk 0:00:02]} 0-1


[Site "https://www.chess.com"]

[Event "Titled Tuesday Blitz June 6 Late 2023"]
[White "Di Berardino, Diego Rafael"]
[Black "D`Arruda, Ricardo D."]
[WhiteFideId "2105446"]
[BlackFideId "100692"]
[WhiteElo "2426"]
[BlackElo "2539"]
[Result "1-0"]
[Round "11"]
[TimeControl "180+2"]
[Date "2023.06.07"]
[WhiteClock "0:01:48"]
[BlackClock "0:01:45"]
[Board "48"]

1. d4 {[%clk 0:03:00]}  Nf6 {[%clk 0:02:48]} 2. Nf3 {[%clk 0:03:01]}  e6 {[%clk 0:02:47]} 3. Bg5 {[%clk 0:02:58]}  d5 {[%clk 0:02:48]} 4. Nbd2 {[%clk 0:02:53]}  Be7 {[%clk 0:02:48]} 5. e3 {[%clk 0:02:53]}  O-O {[%clk 0:02:47]} 6. Bd3 {[%clk 0:02:52]}  c5 {[%clk 0:02:47]} 7. c3 {[%clk 0:02:47]}  Nbd7 {[%clk 0:02:45]} 8. Ne5 {[%clk 0:02:45]}  h6 {[%clk 0:02:44]} 9. Bf4 {[%clk 0:02:42]}  Qb6 {[%clk 0:02:41]} 10. Rb1 {[%clk 0:02:35]}  Re8 {[%clk 0:02:34]} 11. g4 {[%clk 0:02:29]}  Nxe5 {[%clk 0:02:32]} 12. dxe5 {[%clk 0:02:28]}  Nd7 {[%clk 0:02:31]} 13. h4 {[%clk 0:02:27]}  g5 {[%clk 0:02:16]} 14. hxg5 {[%clk 0:02:24]}  hxg5 {[%clk 0:02:17]} 15. Qf3 {[%clk 0:02:16]}  gxf4 {[%clk 0:01:45]} 16. Qh3 {[%clk 0:01:48]} 1-0


[Site "https://www.chess.com"]

[Event "Titled Tuesday Blitz June 6 Late 2023"]
[White "Chabris, Christopher"]
[Black "Moral Garcia, Serafin"]
[WhiteFideId "2005263"]
[BlackFideId "2201925"]
[WhiteElo "2421"]
[BlackElo "2274"]
[Result "0-1"]
[Round "11"]
[TimeControl "180+2"]
[Date "2023.06.07"]
[WhiteClock "0:00:03"]
[BlackClock "0:01:07"]
[Board "49"]

1. e4 {[%clk 0:03:00]}  c5 {[%clk 0:02:57]} 2. Nf3 {[%clk 0:03:00]}  e6 {[%clk 0:02:58]} 3. d4 {[%clk 0:03:00]}  cxd4 {[%clk 0:02:58]} 4. Nxd4 {[%clk 0:03:00]}  Nc6 {[%clk 0:02:59]} 5. Nc3 {[%clk 0:03:00]}  Qc7 {[%clk 0:02:58]} 6. g3 {[%clk 0:03:00]}  a6 {[%clk 0:02:57]} 7. Bg2 {[%clk 0:02:59]}  d6 {[%clk 0:02:58]} 8. O-O {[%clk 0:02:58]}  Bd7 {[%clk 0:02:58]} 9. Re1 {[%clk 0:02:56]}  Be7 {[%clk 0:02:57]} 10. a4 {[%clk 0:02:54]}  Bf6 {[%clk 0:02:54]} 11. Nxc6 {[%clk 0:02:45]}  Bxc6 {[%clk 0:02:54]} 12. Nd5 {[%clk 0:02:42]}  Bxd5 {[%clk 0:02:41]} 13. exd5 {[%clk 0:02:41]}  e5 {[%clk 0:02:40]} 14. a5 {[%clk 0:02:38]}  Ne7 {[%clk 0:02:40]} 15. Be3 {[%clk 0:02:33]}  O-O {[%clk 0:02:37]} 16. Bb6 {[%clk 0:02:31]}  Qd7 {[%clk 0:02:35]} 17. Qh5 {[%clk 0:02:24]}  g6 {[%clk 0:02:35]} 18. Bh3 {[%clk 0:02:22]}  Qb5 {[%clk 0:02:28]} 19. Qf3 {[%clk 0:02:12]}  Bg7 {[%clk 0:02:27]} 20. Red1 {[%clk 0:01:52]}  f5 {[%clk 0:02:25]} 21. Qd3 {[%clk 0:01:37]}  Qxd3 {[%clk 0:02:22]} 22. Rxd3 {[%clk 0:01:36]}  e4 {[%clk 0:02:15]} 23. Rdd1 {[%clk 0:01:25]}  Rac8 {[%clk 0:02:06]} 24. c3 {[%clk 0:01:25]}  Be5 {[%clk 0:01:59]} 25. Ra4 {[%clk 0:01:12]}  Kg7 {[%clk 0:01:56]} 26. Rb4 {[%clk 0:01:10]}  Ng8 {[%clk 0:01:54]} 27. Bd4 {[%clk 0:01:06]}  Rc7 {[%clk 0:01:48]} 28. Bxe5+ {[%clk 0:01:05]}  dxe5 {[%clk 0:01:48]} 29. d6 {[%clk 0:01:05]}  Rd7 {[%clk 0:01:49]} 30. c4 {[%clk 0:01:04]}  Rc8 {[%clk 0:01:45]} 31. Rd5 {[%clk 0:01:01]}  Kf6 {[%clk 0:01:31]} 32. c5 {[%clk 0:00:50]}  Ke6 {[%clk 0:01:30]} 33. Rd1 {[%clk 0:00:29]}  Rxc5 {[%clk 0:01:28]} 34. Rxe4 {[%clk 0:00:23]}  Rxd6 {[%clk 0:01:25]} 35. Rxd6+ {[%clk 0:00:22]}  Kxd6 {[%clk 0:01:25]} 36. Rb4 {[%clk 0:00:22]}  Rb5 {[%clk 0:01:21]} 37. Rxb5 {[%clk 0:00:18]}  axb5 {[%clk 0:01:19]} 38. b4 {[%clk 0:00:18]}  Nf6 {[%clk 0:01:14]} 39. Bf1 {[%clk 0:00:17]}  Kc6 {[%clk 0:01:14]} 40. Kg2 {[%clk 0:00:10]}  Nd5 {[%clk 0:01:14]} 41. Kf3 {[%clk 0:00:09]}  Nxb4 {[%clk 0:01:14]} 42. g4 {[%clk 0:00:09]}  Nd5 {[%clk 0:01:12]} 43. gxf5 {[%clk 0:00:08]}  gxf5 {[%clk 0:01:12]} 44. Ke2 {[%clk 0:00:07]}  Kc5 {[%clk 0:01:11]} 45. Kd3 {[%clk 0:00:08]}  e4+ {[%clk 0:01:10]} 46. Kc2 {[%clk 0:00:07]}  b4 {[%clk 0:01:10]} 47. Kb3 {[%clk 0:00:06]}  Nc7 {[%clk 0:01:07]} 48. Bh3 {[%clk 0:00:04]}  f4 {[%clk 0:01:06]} 49. Bf5 {[%clk 0:00:04]}  e3 {[%clk 0:01:06]} 50. fxe3 {[%clk 0:00:05]}  fxe3 {[%clk 0:01:07]} 51. Bd3 {[%clk 0:00:04]}  Nb5 {[%clk 0:01:07]} 52. h4 {[%clk 0:00:03]}  Nd4+ {[%clk 0:01:07]} 53. Kb2 {[%clk 0:00:03]}  e2 {[%clk 0:01:07]} 0-1


[Site "https://www.chess.com"]

[Event "Titled Tuesday Blitz June 6 Late 2023"]
[White "Prieto Aranguren, Alain"]
[Black "Hajiyev, Kanan"]
[WhiteFideId "2268906"]
[BlackFideId "13404148"]
[WhiteElo "2209"]
[BlackElo "2115"]
[Result "1/2-1/2"]
[Round "11"]
[TimeControl "180+2"]
[Date "2023.06.07"]
[WhiteClock "0:00:13"]
[BlackClock "0:00:07"]
[Board "50"]

1. e4 {[%clk 0:02:24]}  c6 {[%clk 0:02:59]} 2. d4 {[%clk 0:02:24]}  d5 {[%clk 0:03:00]} 3. exd5 {[%clk 0:02:24]}  cxd5 {[%clk 0:03:01]} 4. Nf3 {[%clk 0:02:24]}  Bg4 {[%clk 0:03:00]} 5. Bd3 {[%clk 0:02:24]}  Nc6 {[%clk 0:03:00]} 6. O-O {[%clk 0:02:18]}  Bxf3 {[%clk 0:02:49]} 7. Qxf3 {[%clk 0:02:18]}  Nxd4 {[%clk 0:02:50]} 8. Qe3 {[%clk 0:02:18]}  Nc6 {[%clk 0:02:49]} 9. c4 {[%clk 0:02:16]}  d4 {[%clk 0:02:47]} 10. Qe2 {[%clk 0:02:14]}  Nf6 {[%clk 0:02:44]} 11. Bg5 {[%clk 0:02:09]}  e6 {[%clk 0:02:27]} 12. Nd2 {[%clk 0:02:09]}  Be7 {[%clk 0:02:27]} 13. f4 {[%clk 0:02:07]}  O-O {[%clk 0:02:25]} 14. Rf3 {[%clk 0:02:04]}  Nb4 {[%clk 0:01:37]} 15. Rh3 {[%clk 0:02:03]}  Nxd3 {[%clk 0:01:34]} 16. Qxd3 {[%clk 0:02:03]}  g6 {[%clk 0:01:29]} 17. Qg3 {[%clk 0:01:59]}  Kg7 {[%clk 0:01:01]} 18. Qh4 {[%clk 0:01:58]}  h5 {[%clk 0:00:58]} 19. Ne4 {[%clk 0:01:43]}  Nxe4 {[%clk 0:00:56]} 20. Bxe7 {[%clk 0:01:42]}  Qb6 {[%clk 0:00:57]} 21. c5 {[%clk 0:01:35]}  Qxb2 {[%clk 0:00:53]} 22. Bxf8+ {[%clk 0:01:30]}  Rxf8 {[%clk 0:00:51]} 23. Rf1 {[%clk 0:01:31]}  Qxa2 {[%clk 0:00:39]} 24. Qe1 {[%clk 0:01:24]}  Qd5 {[%clk 0:00:38]} 25. Ra3 {[%clk 0:00:55]}  d3 {[%clk 0:00:36]} 26. Qe3 {[%clk 0:00:50]}  d2 {[%clk 0:00:25]} 27. Rd3 {[%clk 0:00:43]}  Qxc5 {[%clk 0:00:25]} 28. Qxc5 {[%clk 0:00:41]}  Nxc5 {[%clk 0:00:26]} 29. Rxd2 {[%clk 0:00:42]}  a5 {[%clk 0:00:27]} 30. Rb1 {[%clk 0:00:40]}  Rc8 {[%clk 0:00:14]} 31. Rc2 {[%clk 0:00:37]}  Rc6 {[%clk 0:00:14]} 32. Rxb7 {[%clk 0:00:33]}  Nxb7 {[%clk 0:00:14]} 33. Rxc6 {[%clk 0:00:33]}  Kf6 {[%clk 0:00:13]} 34. Ra6 {[%clk 0:00:32]}  h4 {[%clk 0:00:10]} 35. Ra7 {[%clk 0:00:31]}  Nc5 {[%clk 0:00:08]} 36. Rxa5 {[%clk 0:00:30]}  Nd3 {[%clk 0:00:07]} 37. g3 {[%clk 0:00:24]}  hxg3 {[%clk 0:00:08]} 38. hxg3 {[%clk 0:00:25]}  Nb4 {[%clk 0:00:09]} 39. Kg2 {[%clk 0:00:22]}  Nd5 {[%clk 0:00:09]} 40. Kf3 {[%clk 0:00:21]}  g5 {[%clk 0:00:07]} 41. Ra7 {[%clk 0:00:20]}  gxf4 {[%clk 0:00:07]} 42. gxf4 {[%clk 0:00:21]}  Ne7 {[%clk 0:00:07]} 43. Ke4 {[%clk 0:00:19]}  Nf5 {[%clk 0:00:08]} 44. Ra8 {[%clk 0:00:19]}  Nd6+ {[%clk 0:00:08]} 45. Kf3 {[%clk 0:00:17]}  Nc4 {[%clk 0:00:09]} 46. Kg4 {[%clk 0:00:17]}  Ne3+ {[%clk 0:00:09]} 47. Kf3 {[%clk 0:00:16]}  Nd5 {[%clk 0:00:10]} 48. Rh8 {[%clk 0:00:15]}  Kf5 {[%clk 0:00:09]} 49. Rh5+ {[%clk 0:00:14]}  Kg6 {[%clk 0:00:09]} 50. Rh1 {[%clk 0:00:14]}  f6 {[%clk 0:00:09]} 51. Ke4 {[%clk 0:00:14]}  Nc3+ {[%clk 0:00:09]} 52. Kf3 {[%clk 0:00:13]}  Nd5 {[%clk 0:00:07]} 53. Ke4 {[%clk 0:00:13]}  Nc3+ {[%clk 0:00:06]} 54. Kf3 {[%clk 0:00:14]}  Kf5 {[%clk 0:00:06]} 55. Rh5+ {[%clk 0:00:13]}  Kg6 {[%clk 0:00:07]} 56. Rh1 {[%clk 0:00:13]} 1/2-1/2


[Site "https://www.chess.com"]

[Event "Titled Tuesday Blitz June 6 Late 2023"]
[White "Cardozo Munar, Carlos Eduardo"]
[Black "Rangel, Daniel"]
[WhiteFideId "4409477"]
[BlackFideId "2124475"]
[WhiteElo "2067"]
[BlackElo "2231"]
[Result "0-1"]
[Round "11"]
[TimeControl "180+2"]
[Date "2023.06.07"]
[WhiteClock "0:00:15"]
[BlackClock "0:01:06"]
[Board "52"]

1. d4 {[%clk 0:02:55]}  Nf6 {[%clk 0:02:58]} 2. Bg5 {[%clk 0:02:55]}  e6 {[%clk 0:02:58]} 3. Nd2 {[%clk 0:02:55]}  c5 {[%clk 0:02:58]} 4. c3 {[%clk 0:02:55]}  b6 {[%clk 0:02:58]} 5. e4 {[%clk 0:02:55]}  h6 {[%clk 0:02:57]} 6. Bh4 {[%clk 0:02:55]}  Bb7 {[%clk 0:02:57]} 7. e5 {[%clk 0:02:54]}  g5 {[%clk 0:02:57]} 8. Bg3 {[%clk 0:02:46]}  Nd5 {[%clk 0:02:54]} 9. Bd3 {[%clk 0:02:44]}  cxd4 {[%clk 0:02:52]} 10. cxd4 {[%clk 0:02:44]}  Nf4 {[%clk 0:02:51]} 11. Bxf4 {[%clk 0:02:43]}  gxf4 {[%clk 0:02:29]} 12. f3 {[%clk 0:02:39]}  Rg8 {[%clk 0:02:17]} 13. Qe2 {[%clk 0:02:38]}  Nc6 {[%clk 0:02:17]} 14. Nb3 {[%clk 0:02:31]}  Nb4 {[%clk 0:02:01]} 15. Be4 {[%clk 0:02:25]}  Ba6 {[%clk 0:01:54]} 16. Qd2 {[%clk 0:02:18]}  Rc8 {[%clk 0:01:41]} 17. a3 {[%clk 0:01:40]}  Qh4+ {[%clk 0:01:22]} 18. Kd1 {[%clk 0:01:13]}  Bc4 {[%clk 0:01:17]} 19. Nc1 {[%clk 0:00:41]}  Nd5 {[%clk 0:01:16]} 20. Bxd5 {[%clk 0:00:35]}  Bxd5 {[%clk 0:01:13]} 21. Nd3 {[%clk 0:00:36]}  Bb3+ {[%clk 0:01:10]} 22. Ke2 {[%clk 0:00:22]}  Rxg2+ {[%clk 0:01:09]} 23. Kf1 {[%clk 0:00:14]}  Rxd2 {[%clk 0:01:07]} 24. Nf2 {[%clk 0:00:15]}  Qxf2# {[%clk 0:01:06]} 0-1


[Site "https://www.chess.com"]

[Event "Titled Tuesday Blitz June 6 Late 2023"]
[White "Licznerski, Lukasz"]
[Black "Ladan, Nicholas"]
[WhiteFideId "1179250"]
[BlackFideId "30918855"]
[WhiteElo "2453"]
[BlackElo "2167"]
[Result "1-0"]
[Round "11"]
[TimeControl "180+2"]
[Date "2023.06.07"]
[WhiteClock "0:01:17"]
[BlackClock "0:00:49"]
[Board "53"]

1. e4 {[%clk 0:03:00]}  e5 {[%clk 0:03:00]} 2. Nf3 {[%clk 0:02:43]}  Nc6 {[%clk 0:03:00]} 3. Bb5 {[%clk 0:02:43]}  a6 {[%clk 0:03:00]} 4. Bxc6 {[%clk 0:02:43]}  dxc6 {[%clk 0:03:00]} 5. O-O {[%clk 0:02:44]}  Bd6 {[%clk 0:02:59]} 6. d4 {[%clk 0:02:42]}  exd4 {[%clk 0:02:58]} 7. Qxd4 {[%clk 0:02:43]}  f6 {[%clk 0:02:44]} 8. Nbd2 {[%clk 0:02:37]}  Ne7 {[%clk 0:02:39]} 9. Nc4 {[%clk 0:02:36]}  Bg4 {[%clk 0:02:31]} 10. e5 {[%clk 0:02:17]}  Bxf3 {[%clk 0:02:09]} 11. exd6 {[%clk 0:02:17]}  Bh5 {[%clk 0:02:06]} 12. Qh4 {[%clk 0:01:54]}  Be2 {[%clk 0:01:22]} 13. dxe7 {[%clk 0:01:43]}  Qxe7 {[%clk 0:01:07]} 14. Re1 {[%clk 0:01:42]}  O-O-O {[%clk 0:01:06]} 15. Qh3+ {[%clk 0:01:27]}  Kb8 {[%clk 0:01:04]} 16. Qe3 {[%clk 0:01:27]}  Rhe8 {[%clk 0:00:57]} 17. Qxe7 {[%clk 0:01:24]}  Rxe7 {[%clk 0:00:58]} 18. Ne3 {[%clk 0:01:24]}  Bh5 {[%clk 0:00:56]} 19. b3 {[%clk 0:01:19]}  Bg6 {[%clk 0:00:55]} 20. Ba3 {[%clk 0:01:18]}  a5 {[%clk 0:00:49]} 21. Bxe7 {[%clk 0:01:17]} 1-0


[Site "https://www.chess.com"]

[Event "Titled Tuesday Blitz June 6 Late 2023"]
[White "Veiga, Jose Francisco R P Neves"]
[Black "Pasti, Aron"]
[WhiteFideId "1930087"]
[BlackFideId "785857"]
[WhiteElo "2319"]
[BlackElo "2173"]
[Result "1-0"]
[Round "11"]
[TimeControl "180+2"]
[Date "2023.06.07"]
[WhiteClock "0:00:37"]
[BlackClock "0:00:03"]
[Board "55"]

1. e4 {[%clk 0:03:00]}  c5 {[%clk 0:02:45]} 2. Nf3 {[%clk 0:03:00]}  e6 {[%clk 0:02:44]} 3. d4 {[%clk 0:03:00]}  cxd4 {[%clk 0:02:45]} 4. Nxd4 {[%clk 0:03:01]}  Nc6 {[%clk 0:02:44]} 5. Nc3 {[%clk 0:03:01]}  Qc7 {[%clk 0:02:44]} 6. g3 {[%clk 0:03:00]}  Nf6 {[%clk 0:02:40]} 7. Bg2 {[%clk 0:03:00]}  a6 {[%clk 0:02:38]} 8. O-O {[%clk 0:03:00]}  Nxd4 {[%clk 0:02:38]} 9. Qxd4 {[%clk 0:02:59]}  Bc5 {[%clk 0:02:39]} 10. Qd3 {[%clk 0:02:57]}  h6 {[%clk 0:02:22]} 11. Bf4 {[%clk 0:02:56]}  e5 {[%clk 0:02:08]} 12. Be3 {[%clk 0:02:53]}  Bxe3 {[%clk 0:02:05]} 13. Qxe3 {[%clk 0:02:54]}  d6 {[%clk 0:02:04]} 14. Rad1 {[%clk 0:02:54]}  Be6 {[%clk 0:02:00]} 15. Rd2 {[%clk 0:02:54]}  O-O {[%clk 0:01:59]} 16. Rfd1 {[%clk 0:02:54]}  Rfd8 {[%clk 0:01:59]} 17. h3 {[%clk 0:02:55]}  b5 {[%clk 0:01:58]} 18. a3 {[%clk 0:02:55]}  Rab8 {[%clk 0:01:57]} 19. Kh2 {[%clk 0:02:54]}  b4 {[%clk 0:01:51]} 20. axb4 {[%clk 0:02:54]}  Rxb4 {[%clk 0:01:52]} 21. b3 {[%clk 0:02:52]}  Rc8 {[%clk 0:01:31]} 22. Na4 {[%clk 0:02:40]}  Rd4 {[%clk 0:01:28]} 23. c4 {[%clk 0:02:28]}  Rxd2 {[%clk 0:01:25]} 24. Rxd2 {[%clk 0:02:22]}  Rb8 {[%clk 0:01:15]} 25. Rd3 {[%clk 0:02:20]}  Qc6 {[%clk 0:01:02]} 26. Nb2 {[%clk 0:01:59]}  Nd7 {[%clk 0:00:59]} 27. Qd2 {[%clk 0:01:55]}  Nc5 {[%clk 0:00:53]} 28. Rxd6 {[%clk 0:01:55]}  Nxb3 {[%clk 0:00:51]} 29. Qd1 {[%clk 0:01:38]}  Qc7 {[%clk 0:00:49]} 30. Rxa6 {[%clk 0:01:34]}  Nd4 {[%clk 0:00:36]} 31. Qd2 {[%clk 0:01:11]}  Qb7 {[%clk 0:00:33]} 32. Ra2 {[%clk 0:01:06]}  Qb3 {[%clk 0:00:33]} 33. Nd1 {[%clk 0:01:04]}  Bxc4 {[%clk 0:00:27]} 34. Rb2 {[%clk 0:00:55]}  Be6 {[%clk 0:00:03]} 35. Rxb3 {[%clk 0:00:52]}  Nxb3 {[%clk 0:00:04]} 36. Qc3 {[%clk 0:00:51]}  Nd4 {[%clk 0:00:04]} 37. Ne3 {[%clk 0:00:51]}  Rb1 {[%clk 0:00:04]} 38. Qc5 {[%clk 0:00:49]}  f6 {[%clk 0:00:04]} 39. Qe7 {[%clk 0:00:48]}  Bf7 {[%clk 0:00:04]} 40. Nd5 {[%clk 0:00:44]}  Rc1 {[%clk 0:00:02]} 41. Qd8+ {[%clk 0:00:43]}  Kh7 {[%clk 0:00:02]} 42. Qd7 {[%clk 0:00:42]}  Kg6 {[%clk 0:00:02]} 43. Ne7+ {[%clk 0:00:42]}  Kh7 {[%clk 0:00:02]} 44. Nf5 {[%clk 0:00:41]}  Nxf5 {[%clk 0:00:03]} 45. Qxf7 {[%clk 0:00:40]}  Nd4 {[%clk 0:00:03]} 46. h4 {[%clk 0:00:39]}  Rc2 {[%clk 0:00:03]} 47. Kg1 {[%clk 0:00:37]}  Rc1+ {[%clk 0:00:03]} 48. Bf1 {[%clk 0:00:38]}  Nf3+ {[%clk 0:00:03]} 49. Kg2 {[%clk 0:00:38]}  Nd2 {[%clk 0:00:03]} 50. Be2 {[%clk 0:00:36]}  Nxe4 {[%clk 0:00:03]} 51. Bd3 {[%clk 0:00:37]}  Re1 {[%clk 0:00:03]} 1-0


[Site "https://www.chess.com"]

[Event "Titled Tuesday Blitz June 6 Late 2023"]
[White "Balla, Tamas-Kristof"]
[Black "Gomez Ledo, Roberto Carlos"]
[WhiteFideId "1208497"]
[BlackFideId "3507076"]
[WhiteElo "2334"]
[BlackElo "2378"]
[Result "0-1"]
[Round "11"]
[TimeControl "180+2"]
[Date "2023.06.07"]
[WhiteClock "0:00:10"]
[BlackClock "0:01:12"]
[Board "58"]

1. e4 {[%clk 0:02:59]}  d6 {[%clk 0:03:00]} 2. d4 {[%clk 0:02:59]}  Nf6 {[%clk 0:03:00]} 3. Nc3 {[%clk 0:02:59]}  e5 {[%clk 0:03:01]} 4. Nf3 {[%clk 0:02:59]}  Nbd7 {[%clk 0:03:00]} 5. Bc4 {[%clk 0:02:59]}  Be7 {[%clk 0:03:01]} 6. O-O {[%clk 0:02:59]}  O-O {[%clk 0:03:01]} 7. a4 {[%clk 0:03:00]}  c6 {[%clk 0:03:02]} 8. Bg5 {[%clk 0:02:58]}  a5 {[%clk 0:03:01]} 9. Qe2 {[%clk 0:02:49]}  h6 {[%clk 0:02:59]} 10. Bh4 {[%clk 0:02:48]}  Nh5 {[%clk 0:02:54]} 11. Bg3 {[%clk 0:02:42]}  Nxg3 {[%clk 0:02:53]} 12. hxg3 {[%clk 0:02:41]}  exd4 {[%clk 0:02:50]} 13. Nxd4 {[%clk 0:02:41]}  Nc5 {[%clk 0:02:50]} 14. Rad1 {[%clk 0:02:33]}  Qb6 {[%clk 0:02:50]} 15. Nf5 {[%clk 0:02:00]}  Bxf5 {[%clk 0:02:47]} 16. exf5 {[%clk 0:02:00]}  Rae8 {[%clk 0:02:46]} 17. b3 {[%clk 0:01:20]}  Bf6 {[%clk 0:02:38]} 18. Qf3 {[%clk 0:01:16]}  d5 {[%clk 0:02:36]} 19. Bxd5 {[%clk 0:00:54]}  Bxc3 {[%clk 0:02:26]} 20. Qxc3 {[%clk 0:00:49]}  cxd5 {[%clk 0:02:26]} 21. Rxd5 {[%clk 0:00:50]}  Rc8 {[%clk 0:02:18]} 22. Qd4 {[%clk 0:00:44]}  Qf6 {[%clk 0:02:12]} 23. Qd2 {[%clk 0:00:38]}  b6 {[%clk 0:02:02]} 24. Rd6 {[%clk 0:00:37]}  Rfd8 {[%clk 0:01:42]} 25. Rxf6 {[%clk 0:00:15]}  Rxd2 {[%clk 0:01:43]} 26. Rxb6 {[%clk 0:00:15]}  Rxc2 {[%clk 0:01:42]} 27. Rb5 {[%clk 0:00:16]}  Ra8 {[%clk 0:01:29]} 28. f6 {[%clk 0:00:16]}  gxf6 {[%clk 0:01:27]} 29. Rd1 {[%clk 0:00:17]}  Ne4 {[%clk 0:01:23]} 30. Rd4 {[%clk 0:00:11]}  Nc3 {[%clk 0:01:13]} 31. Rf5 {[%clk 0:00:10]}  Ne2+ {[%clk 0:01:12]} 0-1


[Site "https://www.chess.com"]